bitfinex-derivatives/quotes_BTCF0:USTF0_20210703
["timestamp","ask_amount","ask_price","bid_price","bid_amount"]
[1625347807747,0.01416103,34767.0,34766.0,0.00447127]
[1625347808948,0.01416014,34769.0,34766.0,0.00447127]
[1625347810150,0.01416014,34769.0,34768.0,0.24057544]
[1625347810450,0.01416014,34769.0,34768.0,0.24504633]
[1625347812503,1.03029903,34769.0,34768.0,0.24504633]
[1625347812603,1.03029903,34769.0,34768.0,0.24057544]
[1625347813102,1.03029903,34769.0,34768.0,0.2450462]
[1625347814711,1.03029903,34769.0,34768.0,0.24057544]
[1625347815661,1.01613889,34769.0,34768.0,0.24504625]
[1625347816964,1.01613889,34769.0,34768.0,0.24057544]
[1625347817765,1.01613889,34769.0,34768.0,0.24504612]
[1625347818420,1.01613889,34769.0,34768.0,0.30404612]
[1625347818622,1.01613889,34769.0,34768.0,1.31193816]
[1625347819221,1.01613889,34769.0,34768.0,1.37093816]
[1625347819324,1.01613889,34769.0,34768.0,0.36304612]
[1625347819673,1.0180914,34772.0,34768.0,2.54421403]
[1625347820024,1.0180914,34772.0,34769.0,0.00447022]
[1625347820125,1.0180914,34772.0,34769.0,0.06347022]
[1625347820274,1.0180914,34772.0,34770.0,1.00662264]
[1625347820375,1.0180914,34772.0,34771.0,0.48115088]
[1625347820474,1.0180914,34772.0,34771.0,0.54015088]
[1625347820574,1.0180914,34772.0,34771.0,0.54462101]
[1625347820776,1.18944212,34772.0,34771.0,2.22466399]
[1625347820875,1.18944212,34772.0,34771.0,2.22019386]
[1625347821276,2.88873245,34772.0,34771.0,2.22019386]
[1625347821425,2.88873245,34772.0,34771.0,2.2246639]
[1625347821926,2.88873245,34772.0,34771.0,2.22019386]
[1625347825335,2.88873245,34772.0,34771.0,2.22466472]
[1625347825938,1.69929033,34772.0,34771.0,2.22466472]
[1625347830999,0.67975011,34772.0,34771.0,3.39822951]
[1625347832102,0.67975011,34772.0,34771.0,2.22466472]
[1625347832704,0.67975011,34772.0,34771.0,3.39886639]
[1625347833258,0.67975011,34772.0,34771.0,2.22466472]
[1625347833906,0.67883432,34773.0,34771.0,2.22466472]
[1625347834206,0.67883432,34773.0,34771.0,2.28366472]
[1625347834309,0.67883432,34773.0,34772.0,0.00447205]
[1625347834510,0.67883432,34773.0,34772.0,0.34233205]
[1625347834612,0.67883432,34773.0,34772.0,2.07922348]
[1625347835264,0.6788224,34775.0,34772.0,3.252964]
[1625347835663,0.6788224,34775.0,34773.0,0.00447194]
[1625347835765,1.18781196,34777.0,34773.0,0.00447194]
[1625347835863,1.58750682,34778.0,34774.0,1.67609235]
[1625347836013,1.58750682,34778.0,34774.0,1.73509235]
[1625347836116,1.58750682,34778.0,34774.0,1.79409235]
[1625347836214,1.58750682,34778.0,34775.0,0.00447194]
[1625347836463,1.58750682,34778.0,34777.0,0.13829412]
[1625347836713,1.6016584,34778.0,34777.0,0.13829412]
[1625347836862,3.29822781,34778.0,34777.0,0.13829412]
[1625347837715,2.11072099,34778.0,34777.0,0.13829412]
[1625347838869,3.29804748,34778.0,34777.0,0.13829412]
[1625347839118,3.29804748,34778.0,34777.0,0.19729412]
[1625347839370,2.09656941,34778.0,34777.0,0.26076573]
[1625347839468,2.09656941,34778.0,34777.0,0.20176573]
[1625347839871,1.07866169,34778.0,34777.0,0.87163514]
[1625347840371,1.07866169,34778.0,34777.0,0.93063514]
[1625347840471,0.4,34778.0,34777.0,1.87580083]
[1625347840621,0.4,34778.0,34777.0,1.93480083]
[1625347840722,0.4,34778.0,34777.0,1.87580083]
[1625347840974,0.4,34778.0,34777.0,1.93480083]
[1625347841074,0.4,34778.0,34777.0,1.87580083]
[1625347841526,0.4,34778.0,34777.0,1.93480083]
[1625347841826,0.4,34778.0,34777.0,1.87580083]
[1625347841927,0.4,34778.0,34777.0,1.93480083]
[1625347842077,0.4,34778.0,34777.0,0.93063514]
[1625347842477,0.4,34778.0,34777.0,0.87163514]
[1625347842578,0.4,34778.0,34777.0,0.93063514]
[1625347843127,0.4,34778.0,34777.0,0.87163514]
[1625347843227,0.4,34778.0,34777.0,1.87544708]
[1625347843578,0.4,34778.0,34777.0,1.93444708]
[1625347843929,0.4,34778.0,34777.0,1.87544708]
[1625347844029,0.4,34778.0,34777.0,1.93444708]
[1625347844178,0.4,34778.0,34777.0,1.87544708]
[1625347844430,0.4,34778.0,34777.0,1.93444708]
[1625347845131,0.4,34778.0,34777.0,1.87544708]
[1625347845433,0.4,34778.0,34777.0,0.87163514]
[1625347845633,0.4,34778.0,34777.0,0.93063514]
[1625347846336,0.4,34778.0,34777.0,0.87163514]
[1625347846435,0.4,34778.0,34777.0,0.93063514]
[1625347846685,0.4,34778.0,34777.0,0.87163514]
[1625347846836,0.4,34778.0,34777.0,0.93063514]
[1625347846936,0.4,34778.0,34777.0,1.01753514]
[1625347847038,0.4,34778.0,34777.0,0.87163514]
[1625347847237,0.4,34778.0,34777.0,0.93063514]
[1625347847338,0.4,34778.0,34777.0,0.87163514]
[1625347848040,0.4,34778.0,34777.0,0.95743514]
[1625347848189,0.4,34778.0,34777.0,1.01643514]
[1625347848392,0.4,34778.0,34777.0,2.019381]
[1625347848592,0.4,34778.0,34777.0,1.933581]
[1625347848895,0.4,34778.0,34777.0,1.874581]
[1625347849244,0.4,34778.0,34777.0,1.933581]
[1625347849343,0.4,34778.0,34777.0,1.874581]
[1625347849493,0.4,34778.0,34777.0,1.933581]
[1625347850143,0.06,34778.0,34777.0,1.933581]
[1625347850545,0.06,34778.0,34777.0,2.43477076]
[1625347850695,0.4,34778.0,34777.0,2.43477076]
[1625347853249,0.4,34778.0,34777.0,2.37577076]
[1625347853348,0.4,34778.0,34777.0,2.43477076]
[1625347853901,0.4,34778.0,34777.0,2.37577076]
[1625347854001,0.4,34778.0,34777.0,2.43477076]
[1625347855055,0.4,34778.0,34777.0,2.37577076]
[1625347855254,0.4,34778.0,34777.0,2.43477076]
[1625347855556,0.4,34778.0,34777.0,2.37577076]
[1625347855656,0.4,34778.0,34777.0,2.43477076]
[1625347856106,0.4,34778.0,34777.0,2.37577076]
[1625347857159,0.4,34778.0,34777.0,2.43477076]
[1625347857410,0.4,34778.0,34777.0,2.37577076]
[1625347857510,0.4,34778.0,34777.0,2.43477076]
[1625347857861,0.4,34778.0,34777.0,2.37577076]
[1625347858011,0.4,34778.0,34777.0,2.43477076]
[1625347858162,0.4,34778.0,34777.0,3.60485929]
[1625347858412,0.4,34778.0,34777.0,3.54585929]
[1625347858514,0.4,34778.0,34777.0,3.60485929]
[1625347858612,0.4,34778.0,34777.0,3.54585929]
[1625347858714,0.4,34778.0,34777.0,3.60485929]
[1625347859315,0.4,34778.0,34777.0,3.54585929]
[1625347859465,0.4,34778.0,34777.0,3.60485929]
[1625347860828,0.4,34778.0,34777.0,3.54585929]
[1625347861027,0.4,34778.0,34777.0,3.60485929]
[1625347861124,0.4,34778.0,34777.0,3.54585929]
[1625347861274,0.4,34778.0,34777.0,3.60485929]
[1625347861377,0.4,34778.0,34777.0,3.54585929]
[1625347861732,0.4,34778.0,34777.0,2.37577076]
[1625347862178,0.4,34778.0,34777.0,2.43477076]
[1625347863780,0.4,34778.0,34777.0,2.37577076]
[1625347865334,0.4,34778.0,34777.0,3.54712931]
[1625347865683,0.4,34778.0,34777.0,3.60612931]
[1625347865935,0.90902705,34778.0,34777.0,2.37577076]
[1625347866134,0.90902705,34778.0,34777.0,2.43477076]
[1625347866335,0.90902705,34778.0,34777.0,2.37577076]
[1625347866987,0.90902705,34778.0,34777.0,2.43477076]
[1625347867139,0.90902705,34778.0,34777.0,2.37577076]
[1625347867589,0.92316774,34778.0,34777.0,3.54740165]
[1625347867844,0.92316774,34778.0,34777.0,3.48840165]
[1625347868040,0.92316774,34778.0,34777.0,3.54740165]
[1625347868190,0.92316774,34778.0,34777.0,3.48840165]
[1625347868744,0.92316774,34778.0,34777.0,3.54740165]
[1625347868894,1.60204063,34778.0,34777.0,2.37577076]
[1625347869393,0.92316774,34778.0,34777.0,3.54730963]
[1625347869997,1.60216589,34778.0,34777.0,3.54730963]
[1625347871251,1.60216589,34778.0,34777.0,3.60630963]
[1625347871752,0.41414069,34778.0,34777.0,4.94619443]
[1625347874106,0.92367493,34778.0,34777.0,4.94619443]
[1625347878065,1.60345207,34778.0,34777.0,4.94619443]
[1625347879872,0.92367493,34778.0,34777.0,4.94619443]
[1625347882429,0.92367493,34778.0,34777.0,4.88719443]
[1625347882580,0.92367493,34778.0,34777.0,4.94619443]
[1625347882879,0.92367493,34778.0,34777.0,4.88719443]
[1625347883080,0.92367493,34778.0,34777.0,4.94619443]
[1625347883431,0.75419504,34778.0,34777.0,4.94619443]
[1625347884032,0.92422591,34778.0,34777.0,4.94619443]
[1625347884583,0.91008522,34778.0,34777.0,4.94619443]
[1625347885134,0.4,34778.0,34777.0,6.45442496]
[1625347885235,0.4,34778.0,34777.0,6.39542496]
[1625347885335,0.4,34778.0,34777.0,6.45442496]
[1625347885536,0.74016131,34778.0,34777.0,6.45442496]
[1625347890699,1.25054121,34778.0,34777.0,6.45442496]
[1625347892354,0.9103799,34778.0,34777.0,6.45442496]
[1625347892453,0.9103799,34778.0,34777.0,6.39542496]
[1625347892553,0.9103799,34778.0,34777.0,6.45442496]
[1625347892653,0.9103799,34778.0,34777.0,6.39542496]
[1625347893557,1.5911924,34778.0,34777.0,6.39542496]
[1625347896413,1.5911924,34778.0,34777.0,6.48182496]
[1625347896865,1.5911924,34778.0,34777.0,6.39542496]
[1625347897517,1.5911924,34778.0,34777.0,6.45442496]
[1625347899421,1.5911924,34778.0,34777.0,6.48232496]
[1625347899519,1.5911924,34778.0,34777.0,6.39542496]
[1625347900575,1.5911924,34778.0,34777.0,6.45442496]
[1625347901728,1.5911924,34778.0,34777.0,6.54072496]
[1625347902179,1.5911924,34778.0,34777.0,6.45442496]
[1625347903230,1.5911924,34778.0,34777.0,6.54132496]
[1625347903581,1.5911924,34778.0,34777.0,6.45442496]
[1625347908496,0.9103799,34778.0,34777.0,6.45442496]
[1625347910050,0.9103799,34778.0,34777.0,6.54142496]
[1625347910151,0.9103799,34778.0,34777.0,6.45442496]
[1625347910703,0.9103799,34778.0,34777.0,6.39542496]
[1625347910902,0.9103799,34778.0,34777.0,6.45442496]
[1625347911101,0.9103799,34778.0,34777.0,6.39542496]
[1625347911202,0.9103799,34778.0,34777.0,6.45442496]
[1625347911403,0.9103799,34778.0,34777.0,6.39542496]
[1625347911501,0.9103799,34778.0,34777.0,6.45442496]
[1625347911703,1.59147308,34778.0,34777.0,6.45442496]
[1625347911953,1.59147308,34778.0,34777.0,6.39542496]
[1625347912053,1.59147308,34778.0,34777.0,6.45442496]
[1625347912955,1.59147308,34778.0,34777.0,6.54032496]
[1625347913309,0.9103799,34778.0,34777.0,6.54032496]
[1625347913755,0.9103799,34778.0,34777.0,6.45442496]
[1625347914809,0.9103799,34778.0,34777.0,6.54162496]
[1625347915210,0.9103799,34778.0,34777.0,6.45442496]
[1625347915817,0.91101568,34778.0,34777.0,6.45442496]
[1625347918267,0.5703953,34778.0,34777.0,6.45442496]
[1625347919569,0.4,34778.0,34777.0,6.45442496]
[1625347924089,0.4,34778.0,34777.0,6.44995335]
[1625347924342,0.4,34778.0,34777.0,6.45442723]
[1625347925944,0.57036344,34778.0,34777.0,6.39542723]
[1625347926243,0.57036344,34778.0,34777.0,6.45442723]
[1625347926343,0.4,34778.0,34777.0,6.45442723]
[1625347927394,0.57036951,34778.0,34777.0,6.45442723]
[1625347928950,0.4,34778.0,34777.0,6.45442723]
[1625347929601,0.57038049,34778.0,34777.0,6.45442723]
[1625347930001,0.57038049,34778.0,34777.0,6.39542723]
[1625347930152,0.57038049,34778.0,34777.0,6.45442723]
[1625347930252,0.57038049,34778.0,34777.0,6.39542723]
[1625347930352,0.57038049,34778.0,34777.0,6.45442723]
[1625347930704,0.57038049,34778.0,34777.0,6.39542723]
[1625347930804,0.57038049,34778.0,34777.0,6.45442723]
[1625347931205,0.57038049,34778.0,34777.0,6.39542723]
[1625347931307,0.4,34778.0,34777.0,6.45442723]
[1625347931806,0.4,34778.0,34777.0,6.39542723]
[1625347931906,0.4,34778.0,34777.0,6.45442723]
[1625347933059,0.4,34778.0,34777.0,6.39542723]
[1625347933161,0.4,34778.0,34777.0,6.45442723]
[1625347933561,0.4,34778.0,34777.0,6.39542723]
[1625347933709,0.4,34778.0,34777.0,6.45442723]
[1625347933811,0.4,34778.0,34777.0,6.39542723]
[1625347933961,0.4,34778.0,34777.0,6.45442723]
[1625347934110,0.57040343,34778.0,34777.0,6.39542723]
[1625347934260,0.57040343,34778.0,34777.0,6.45442723]
[1625347935713,0.4,34778.0,34777.0,8.13173469]
[1625347937665,0.4,34778.0,34777.0,8.1402546]
[1625347938466,0.4,34778.0,34777.0,8.13173469]
[1625347938968,0.4,34778.0,34777.0,8.1402542]
[1625347939368,0.4,34778.0,34777.0,8.2273542]
[1625347939467,0.4,34778.0,34777.0,8.1402542]
[1625347940169,0.4,34778.0,34777.0,10.14819263]
[1625347940721,0.4,34778.0,34777.0,10.13967312]
[1625347940821,0.3594,34778.0,34777.0,10.13967312]
[1625347941725,0.3004,34778.0,34777.0,10.13967312]
[1625347941822,0.3004,34778.0,34777.0,10.08919209]
[1625347941927,0.3004,34778.0,34777.0,10.14819209]
[1625347942572,0.3004,34778.0,34777.0,10.13967312]
[1625347942674,0.3004,34778.0,34777.0,10.22697312]
[1625347943174,0.3004,34778.0,34777.0,10.13967312]
[1625347944178,0.3004,34778.0,34777.0,10.23349213]
[1625347944475,0.3004,34778.0,34777.0,10.22497312]
[1625347944977,0.3004,34778.0,34777.0,10.23349198]
[1625347946527,0.3004,34778.0,34777.0,10.22497312]
[1625347949991,0.2134,34778.0,34777.0,10.22497312]
[1625347952449,0.9655,34789.0,34777.0,10.22497312]
[1625347952548,0.9655,34789.0,34777.0,10.28197312]
[1625347952847,0.9655,34789.0,34778.0,0.00447244]
[1625347952947,0.2134,34779.0,34778.0,0.06347244]
[1625347953047,0.2134,34779.0,34778.0,0.12247244]
[1625347953397,0.2134,34779.0,34778.0,0.06347244]
[1625347953497,0.2134,34779.0,34778.0,7.95963845]
[1625347955053,0.2134,34779.0,34778.0,8.68136477]
[1625347962525,0.2134,34779.0,34778.0,8.68988389]
[1625347967982,0.2134,34779.0,34778.0,0.85271788]
[1625347968233,0.2134,34779.0,34778.0,7.18613134]
[1625347968583,0.2134,34779.0,34778.0,8.68614994]
[1625347972345,0.2134,34779.0,34778.0,10.68560332]
[1625347981812,0.1732,34779.0,34778.0,10.68560332]
[1625347983414,0.1732,34779.0,34778.0,11.18560332]
[1625347984114,0.1732,34779.0,34778.0,11.19412142]
[1625347984514,0.1732,34779.0,34778.0,11.18560332]
[1625347984914,0.1732,34779.0,34778.0,10.68560332]
[1625347985367,0.1732,34779.0,34778.0,11.18560332]
[1625347985467,0.1732,34779.0,34778.0,11.19412133]
[1625347987321,0.1732,34779.0,34778.0,10.69412133]
[1625347987721,0.1732,34779.0,34778.0,11.19412133]
[1625347988524,0.9655,34789.0,34778.0,11.19412133]
[1625347988624,0.9655,34789.0,34778.0,11.25112133]
[1625347988726,0.9655,34789.0,34779.0,0.00851788]
[1625347988824,0.9655,34789.0,34779.0,0.36766764]
[1625347988974,0.9655,34789.0,34779.0,0.92666764]
[1625347989074,0.9655,34789.0,34780.0,0.01298976]
[1625347989174,0.9655,34789.0,34788.0,8.8218394]
[1625347989277,0.9655,34789.0,34788.0,8.9398394]
[1625347989425,0.08500098,34797.0,34788.0,8.9398394]
[1625347989675,0.08500098,34797.0,34788.0,8.94431134]
[1625347989878,0.08500098,34797.0,34789.0,0.00447187]
[1625347989977,0.08500098,34797.0,34789.0,0.12247187]
[1625347990426,0.08500098,34797.0,34796.0,4.91072336]
[1625347990828,0.08500098,34797.0,34796.0,4.91519526]
[1625347991178,0.08500098,34797.0,34796.0,5.63692158]
[1625347991281,0.69643398,34798.0,34796.0,5.63692158]
[1625347991529,0.69643398,34798.0,34797.0,0.00447185]
[1625347991780,0.69643398,34798.0,34797.0,4.66624512]
[1625347991781,0.35693904,34798.0,34797.0,4.66624512]
[1625347992332,0.18704421,34798.0,34797.0,4.66624512]
[1625347992933,0.18704421,34798.0,34797.0,6.16473412]
[1625347992934,0.102,34798.0,34797.0,6.16473412]
[1625347993283,0.102,34798.0,34797.0,6.22373412]
[1625347993838,0.102,34798.0,34797.0,6.16473412]
[1625347995288,0.102,34798.0,34797.0,6.28273412]
[1625347995388,0.102,34798.0,34797.0,6.22373412]
[1625347995489,0.102,34798.0,34797.0,6.28273412]
[1625347995587,0.102,34798.0,34797.0,6.22373412]
[1625347995738,0.102,34798.0,34797.0,6.28273412]
[1625347995840,0.102,34798.0,34797.0,6.22373412]
[1625347998550,0.102,34798.0,34797.0,6.28273412]
[1625348010568,0.598,34803.0,34797.0,6.28273412]
[1625348010670,0.384,34803.0,34798.0,0.5]
[1625348010771,0.384,34803.0,34798.0,0.559]
[1625348010875,0.384,34803.0,34798.0,0.618]
[1625348011073,0.384,34803.0,34799.0,0.00447199]
[1625348011171,0.384,34803.0,34799.0,0.12247199]
[1625348011274,0.384,34803.0,34802.0,0.48115088]
[1625348011372,0.3792,34803.0,34802.0,7.15013984]
[1625348011521,0.3792,34803.0,34802.0,7.2136116]
[1625348012075,0.3792,34803.0,34802.0,8.86422872]
[1625348012873,0.3792,34803.0,34802.0,8.94932872]
[1625348012972,0.2988,34803.0,34802.0,8.94932872]
[1625348013926,0.0993,34803.0,34802.0,8.94932872]
[1625348014430,0.0001,34803.0,34802.0,8.94932872]
[1625348014629,0.059,34817.0,34802.0,8.94932872]
[1625348014980,0.059,34817.0,34803.0,0.00447112]
[1625348015183,0.059,34817.0,34816.0,2.14004262]
[1625348015281,0.059,34817.0,34816.0,2.38372262]
[1625348015381,0.059,34817.0,34816.0,3.34602438]
[1625348015482,0.59305107,34819.0,34816.0,3.84602438]
[1625348015583,0.59305107,34819.0,34816.0,3.90949503]
[1625348015734,0.2542796,34822.0,34816.0,6.37952039]
[1625348015835,0.2542796,34822.0,34817.0,0.00447057]
[1625348016034,0.2542796,34822.0,34817.0,0.06347057]
[1625348016134,0.2542796,34822.0,34818.0,0.5]
[1625348016236,0.0402796,34822.0,34818.0,0.618]
[1625348016435,0.0402796,34822.0,34819.0,0.00446986]
[1625348016536,0.0402796,34822.0,34819.0,0.06346986]
[1625348016635,0.0402796,34822.0,34821.0,2.13502076]
[1625348016737,0.16924104,34829.0,34821.0,3.78464733]
[1625348016885,0.16924104,34829.0,34821.0,3.90264733]
[1625348016987,0.16924104,34829.0,34822.0,0.00446937]
[1625348017189,1.18367282,34834.0,34828.0,1.148833]
[1625348017190,1.41061388,34833.0,34828.0,1.148833]
[1625348017288,0.29007604,34834.0,34832.0,0.24057544]
[1625348017439,0.29007604,34834.0,34832.0,0.96230176]
[1625348017690,0.29007604,34834.0,34832.0,1.02130176]
[1625348017938,1.0144282,34838.0,34832.0,1.02130176]
[1625348018038,1.0734282,34838.0,34832.0,1.02130176]
[1625348018188,1.0734282,34838.0,34832.0,1.52130176]
[1625348018589,1.01212692,34847.0,34834.0,1.25282612]
[1625348018689,1.07112692,34847.0,34835.0,0.557]
[1625348018889,1.07112692,34847.0,34835.0,0.616]
[1625348019090,0.059,34847.0,34838.0,0.97851311]
[1625348019189,0.059,34847.0,34838.0,1.53751311]
[1625348019339,0.059,34847.0,34846.0,0.96230176]
[1625348019439,0.059,34847.0,34846.0,1.27343176]
[1625348021145,0.061,34847.0,34846.0,1.27343176]
[1625348024347,0.061,34847.0,34846.0,0.96230176]
[1625348028256,0.12,34847.0,34846.0,0.96230176]
[1625348028955,0.12,34847.0,34834.0,0.057]
[1625348029056,0.12,34847.0,34834.0,0.116]
[1625348029156,0.12,34847.0,34834.0,0.175]
[1625348029406,0.24057544,34840.0,34838.0,0.24057544]
[1625348030057,0.53212544,34840.0,34838.0,0.24057544]
[1625348030559,0.53212544,34840.0,34835.0,0.24057544]
[1625348030959,0.59112544,34840.0,34835.0,0.24057544]
[1625348031409,0.24057544,34836.0,34835.0,0.24057544]
[1625348032161,0.24057544,34836.0,34828.0,0.24057544]
[1625348032361,0.29957544,34836.0,34828.0,0.24057544]
[1625348032560,0.35857544,34836.0,34828.0,0.24057544]
[1625348032861,0.35857544,34836.0,34824.0,0.10659732]
[1625348032961,0.35857544,34836.0,34823.0,0.29757544]
[1625348032962,0.35857544,34836.0,34825.0,0.97340023]
[1625348033161,0.35857544,34836.0,34823.0,0.10803383]
[1625348033463,0.72172632,34824.0,34823.0,0.10803383]
[1625348033567,0.99350632,34824.0,34823.0,0.10803383]
[1625348033712,1.05250632,34824.0,34818.0,0.97498583]
[1625348034465,1.05250632,34824.0,34810.0,1.30215092]
[1625348035067,1.05250632,34824.0,34806.0,1.30370131]
[1625348035467,0.48115088,34807.0,34806.0,1.30370131]
[1625348035570,0.77390088,34807.0,34806.0,1.30370131]
[1625348035670,0.77390088,34807.0,34805.0,1.54489466]
[1625348035769,0.77390088,34807.0,34805.0,1.60389466]
[1625348036272,0.77390088,34807.0,34805.0,0.29957544]
[1625348037021,0.77390088,34807.0,34805.0,0.35857544]
[1625348037222,0.77390088,34807.0,34805.0,0.29957544]
[1625348039529,0.77390088,34807.0,34805.0,0.059]
[1625348043994,0.77390088,34807.0,34805.0,0.118]
[1625348048108,0.77390088,34807.0,34805.0,1.43359481]
[1625348052214,0.77390088,34807.0,34805.0,0.118]
[1625348052863,0.77390088,34807.0,34805.0,1.43657232]
[1625348053419,0.77390088,34807.0,34806.0,1.15406009]
[1625348053515,0.77390088,34807.0,34806.0,1.27206009]
[1625348053966,0.48115088,34807.0,34806.0,1.27206009]
[1625348054216,0.48115088,34807.0,34806.0,1.21306009]
[1625348054317,0.48115088,34807.0,34806.0,2.53200679]
[1625348054617,0.48115088,34807.0,34806.0,2.59100679]
[1625348054715,0.48115088,34807.0,34806.0,2.53200679]
[1625348055217,0.48115088,34807.0,34806.0,2.59100679]
[1625348055317,0.48115088,34807.0,34806.0,2.53200679]
[1625348055417,0.48115088,34807.0,34806.0,2.47300679]
[1625348055771,0.48115088,34807.0,34806.0,2.53200679]
[1625348055870,0.48115088,34807.0,34806.0,2.47300679]
[1625348056169,0.48115088,34807.0,34806.0,2.53200679]
[1625348056271,0.48115088,34807.0,34806.0,2.47300679]
[1625348057023,0.48115088,34807.0,34806.0,1.21306009]
[1625348057172,0.48115088,34807.0,34806.0,1.15406009]
[1625348057574,0.48115088,34807.0,34806.0,1.2175415]
[1625348057674,0.48115088,34807.0,34805.0,0.38342782]
[1625348057775,0.67873088,34807.0,34805.0,0.38342782]
[1625348057926,0.73773088,34807.0,34805.0,0.38342782]
[1625348058277,0.73773088,34807.0,34800.0,1.48693663]
[1625348058729,0.73773088,34807.0,34801.0,0.00447594]
[1625348059277,0.73773088,34807.0,34799.0,0.00447589]
[1625348059578,0.72172632,34800.0,34799.0,0.00447589]
[1625348059680,0.92058632,34800.0,34799.0,0.00447589]
[1625348059779,0.97958632,34800.0,34799.0,0.00447589]
[1625348060029,0.97958632,34800.0,34799.0,0.06347589]
[1625348063942,0.97958632,34800.0,34799.0,1.05537347]
[1625348065042,0.97958632,34800.0,34799.0,0.99637347]
[1625348067347,0.97958632,34800.0,34799.0,0.49597347]
[1625348067548,0.97958632,34800.0,34793.0,1.4880065]
[1625348067646,0.48115088,34794.0,34793.0,1.5470065]
[1625348068096,0.48115088,34794.0,34793.0,1.55147412]
[1625348068246,0.48115088,34794.0,34793.0,0.06346762]
[1625348069597,0.48115088,34794.0,34793.0,0.00446762]
[1625348070047,0.54015088,34794.0,34793.0,0.00446762]
[1625348070547,0.54015088,34794.0,34792.0,0.00446837]
[1625348070798,0.54015088,34794.0,34793.0,0.0044684]
[1625348071000,0.54015088,34794.0,34791.0,0.00446844]
[1625348071249,0.54015088,34794.0,34790.0,0.00446842]
[1625348071502,0.54015088,34794.0,34792.0,0.00446842]
[1625348071600,0.78072632,34794.0,34792.0,0.00446842]
[1625348071805,0.78072632,34794.0,34790.0,0.00446844]
[1625348072052,0.78072632,34794.0,34793.0,0.00446844]
[1625348072304,0.78072632,34794.0,34790.0,0.00446846]
[1625348072606,0.78072632,34794.0,34789.0,0.00446853]
[1625348072707,0.78072632,34794.0,34783.0,0.65732177]
[1625348072957,0.78072632,34794.0,34790.0,1.32660699]
[1625348073059,0.83972632,34794.0,34790.0,1.32660699]
[1625348073409,0.83972632,34794.0,34790.0,1.20677116]
[1625348073508,0.83972632,34794.0,34790.0,1.19097116]
[1625348073608,0.24057544,34791.0,34790.0,1.19097116]
[1625348073709,0.50887544,34791.0,34790.0,1.19097116]
[1625348073808,0.50887544,34791.0,34769.0,2.56213768]
[1625348073809,0.62687544,34791.0,34777.0,1.55350519]
[1625348073908,0.62687544,34791.0,34777.0,1.49650519]
[1625348074158,0.62687544,34791.0,34778.0,0.00446402]
[1625348074763,0.62687544,34791.0,34775.0,0.00446438]
[1625348074963,0.62687544,34791.0,34779.0,0.00446453]
[1625348075212,0.62687544,34791.0,34773.0,0.00446453]
[1625348075512,0.62687544,34791.0,34770.0,1.49789499]
[1625348075612,0.24057544,34772.0,34771.0,0.057]
[1625348075714,0.48530544,34772.0,34770.0,1.55689499]
[1625348075813,0.48530544,34772.0,34771.0,0.06346457]
[1625348077415,0.54430544,34772.0,34771.0,0.06346457]
[1625348077617,1.26603176,34772.0,34771.0,0.059]
[1625348077968,1.26603176,34772.0,34771.0,1.89057359]
[1625348079020,1.26603176,34772.0,34771.0,0.72502676]
[1625348079122,1.26603176,34772.0,34771.0,0.66602676]
[1625348081477,1.26603176,34772.0,34770.0,0.66616107]
[1625348083481,1.26603176,34772.0,34770.0,0.72516107]
[1625348084285,1.26803176,34772.0,34770.0,0.72516107]
[1625348084783,1.26803176,34772.0,34771.0,0.66767155]
[1625348086941,1.26803176,34772.0,34770.0,0.66783907]
[1625348087743,1.26803176,34772.0,34771.0,0.66781819]
[1625348097564,1.26803176,34772.0,34770.0,0.66934589]
[1625348099418,1.26803176,34772.0,34771.0,0.66903385]
[1625348099617,1.32703176,34772.0,34771.0,0.67349372]
[1625348099717,1.26803176,34772.0,34771.0,0.67349372]
[1625348099819,1.26803176,34772.0,34771.0,0.00445987]
[1625348100270,1.26803176,34772.0,34770.0,0.66925388]
[1625348100519,1.26803176,34772.0,34771.0,0.00445985]
[1625348101019,1.32703176,34772.0,34771.0,0.00445985]
[1625348101220,1.32703176,34772.0,34771.0,0.67356088]
[1625348107482,1.32703176,34772.0,34771.0,1.17535281]
[1625348107834,1.32703176,34772.0,34771.0,0.50625178]
[1625348110339,1.32703176,34772.0,34771.0,1.17566966]
[1625348114648,1.26803176,34772.0,34771.0,1.17566966]
[1625348114851,1.32703176,34772.0,34771.0,1.17566966]
[1625348115501,1.32703176,34772.0,34771.0,0.50625178]
[1625348116155,1.26803176,34772.0,34771.0,1.17694629]
[1625348116558,1.26803176,34772.0,34771.0,2.18356752]
[1625348116855,1.32703176,34772.0,34771.0,2.18356752]
[1625348117058,1.32703176,34772.0,34771.0,1.17694629]
[1625348117408,1.32703176,34772.0,34771.0,2.18340887]
[1625348120370,1.32703176,34772.0,34771.0,3.35932918]
[1625348122428,1.31503176,34772.0,34771.0,3.35932918]
[1625348124537,1.31503176,34772.0,34771.0,4.70552644]
[1625348124635,1.07030176,34772.0,34771.0,4.70552644]
[1625348124735,1.07030176,34772.0,34771.0,5.00021644]
[1625348129748,1.01130176,34772.0,34771.0,5.00021644]
[1625348130301,1.01130176,34772.0,34771.0,6.51977155]
[1625348130650,1.07030176,34772.0,34771.0,6.51977155]
[1625348131049,1.01130176,34772.0,34771.0,6.51977155]
[1625348131702,1.07030176,34772.0,34771.0,6.51977155]
[1625348131902,1.01130176,34772.0,34771.0,6.51977155]
[1625348132604,1.07030176,34772.0,34771.0,6.51977155]
[1625348132906,1.01130176,34772.0,34771.0,6.51977155]
[1625348133606,1.07030176,34772.0,34771.0,6.51977155]
[1625348136468,1.41097909,34772.0,34771.0,6.51977155]
[1625348136919,1.07030176,34772.0,34771.0,8.21382408]
[1625348138626,1.41112026,34772.0,34771.0,8.21382408]
[1625348140380,1.92229876,34772.0,34771.0,8.21382408]
[1625348140831,1.58148026,34772.0,34771.0,6.51977155]
[1625348145589,2.26303795,34772.0,34771.0,6.51977155]
[1625348146042,1.58148026,34772.0,34771.0,6.51977155]
[1625348147349,3.28540733,34772.0,34771.0,6.51977155]
[1625348148245,3.51859733,34772.0,34771.0,6.51977155]
[1625348148346,3.53278352,34772.0,34771.0,6.51977155]
[1625348148895,3.51859733,34772.0,34771.0,6.51977155]
[1625348150400,4.71117027,34772.0,34771.0,6.51977155]
[1625348150498,4.7253567,34772.0,34771.0,6.51977155]
[1625348150700,4.71117027,34772.0,34771.0,6.51977155]
[1625348150951,4.71117027,34772.0,34771.0,5.00021644]
[1625348151053,4.71117027,34772.0,34771.0,4.70552644]
[1625348156219,6.07304979,34772.0,34771.0,4.70552644]
[1625348157320,6.15814979,34772.0,34771.0,4.70552644]
[1625348158172,6.1723374,34772.0,34771.0,4.70106659]